lending/lending_fUSD_20240824
["ID","MTS","AMOUNT","RATE_DAILY","PERIOD"]
[335859259,1724537437766,-556.0,0.0001092,2]
[335859260,1724537437775,-150.0,0.0001092,2]
[335859261,1724537437784,-1897.0,0.0001092,2]
[335859262,1724537437794,-552.0,0.0001092,2]
[335859263,1724537437803,-3320.0,0.0001092,2]
[335859264,1724537437812,-248.0,0.0001092,2]
[335859266,1724537437823,-1154.0,0.0001092,2]
[335859268,1724537437832,-616.636,0.0001092,2]
[335859270,1724537437841,-1157.93903,0.0001094,2]
[335859272,1724537437851,-178.11,0.00010959,2]
[335859274,1724537437860,-180.13,0.00010959,2]
[335859276,1724537437869,-250.0,0.00010959,2]
[335859278,1724537437878,-200.0,0.00010973,2]
[335859280,1724537437887,-200.0,0.00010973,2]
[335859282,1724537437896,-174.50046058,0.00010973,2]
[335859284,1724537437906,-150.75,0.0001099,2]
[335859286,1724537437928,-150.75,0.0001099,2]
[335859288,1724537437937,-150.75,0.0001099,2]
[335859290,1724537437946,-150.75,0.0001099,2]
[335859292,1724537437955,-150.75,0.0001099,2]
[335859294,1724537437964,-1197.69592068,0.00010997,2]
[335859296,1724537437973,-152.31108172,0.00010999,2]
[335859298,1724537437983,-500.0,0.00010999,2]
[335859300,1724537437992,-500.0,0.00010999,2]
[335859302,1724537438002,-500.0,0.00010999,2]
[335859304,1724537438011,-500.0,0.00010999,2]
[335859306,1724537438020,-500.0,0.00010999,2]
[335859308,1724537438029,-500.0,0.00010999,2]
[335859310,1724537438038,-251.92,0.00010999,2]
[335859312,1724537438047,-319.63733268,0.00010999,2]
[335859314,1724537438056,-500.0,0.00010999,2]
[335859316,1724537438066,-500.0,0.00010999,2]
[335859318,1724537438075,-500.0,0.00010999,2]
[335859320,1724537438084,-500.0,0.00010999,2]
[335859322,1724537438093,-500.0,0.00010999,2]
[335859324,1724537438103,-500.0,0.00010999,2]
[335859326,1724537438113,-417.2250125,0.00010999,2]
[335859328,1724537438123,-500.0,0.00010999,2]
[335859330,1724537438132,-500.0,0.00010999,2]
[335859332,1724537438141,-500.0,0.00010999,2]
[335859334,1724537438149,-542.41587299,0.00010999,2]
[335859335,1724537438161,-500.0,0.00010999,2]
[335859337,1724537438171,-500.0,0.00010999,2]
[335859339,1724537438180,-500.0,0.00010999,2]
[335859341,1724537438190,-305.55631227,0.00010999,2]
[335859343,1724537438199,-500.0,0.00010999,2]
[335859345,1724537438209,-500.0,0.00010999,2]
[335859347,1724537438218,-500.0,0.00010999,2]
[335859349,1724537438228,-500.0,0.00010999,2]
[335859351,1724537438237,-500.0,0.00010999,2]
[335859353,1724537438246,-500.0,0.00010999,2]
[335859355,1724537438255,-500.0,0.00010999,2]
[335859357,1724537438264,-500.0,0.00010999,2]
[335859358,1724537438273,-500.0,0.00010999,2]
[335859359,1724537438282,-500.0,0.00010999,2]
[335859361,1724537438291,-500.0,0.00010999,2]
[335859362,1724537438300,-500.0,0.00010999,2]
[335859363,1724537438309,-500.0,0.00010999,2]
[335859364,1724537438320,-361.2212286,0.00010999,2]
[335859365,1724537438332,-500.0,0.00010999,2]
[335859366,1724537438341,-500.0,0.00010999,2]
[335859367,1724537438350,-500.0,0.00010999,2]
[335859368,1724537438360,-500.0,0.00010999,2]
[335859369,1724537438369,-500.0,0.00010999,2]
[335859370,1724537438378,-500.0,0.00010999,2]
[335859371,1724537438388,-500.0,0.00010999,2]
[335859372,1724537438397,-500.0,0.00010999,2]
[335859373,1724537438408,-500.0,0.00010999,2]
[335859374,1724537438419,-500.0,0.00010999,2]
[335859375,1724537438428,-264.11309719,0.00010999,2]
[335859376,1724537438437,-500.0,0.00010999,2]
[335859377,1724537438446,-500.0,0.00010999,2]
[335859378,1724537438455,-500.0,0.00010999,2]
[335859379,1724537438463,-500.0,0.00010999,2]
[335859380,1724537438472,-500.0,0.00010999,2]
[335859381,1724537438481,-500.0,0.00010999,2]
[335859382,1724537438490,-500.0,0.00010999,2]
[335859383,1724537438500,-500.0,0.00010999,2]
[335859384,1724537438509,-500.0,0.00010999,2]
[335859385,1724537438518,-383.1509744,0.00010999,2]
[335859386,1724537438528,-500.0,0.00010999,2]
[335859387,1724537438536,-500.0,0.00010999,2]
[335859388,1724537438546,-500.0,0.00010999,2]
[335859389,1724537438555,-500.0,0.00010999,2]
[335859390,1724537438564,-500.0,0.00010999,2]
[335859391,1724537438573,-500.0,0.00010999,2]
[335859392,1724537438582,-330.00907134,0.00010999,2]
[335859393,1724537438592,-500.0,0.00010999,2]
[335859394,1724537438601,-500.0,0.00010999,2]
[335859395,1724537438611,-630.68,0.00010999,2]
[335859396,1724537438620,-500.0,0.00010999,2]
[335859397,1724537438630,-500.0,0.00010999,2]
[335859398,1724537438639,-500.0,0.00010999,2]
[335859399,1724537438648,-500.0,0.00010999,2]
[335859400,1724537438657,-500.0,0.00010999,2]
[335859401,1724537438668,-500.0,0.00010999,2]
[335859402,1724537438677,-500.0,0.00010999,2]
[335859403,1724537438686,-500.0,0.00010999,2]
[335859404,1724537438695,-500.0,0.00010999,2]
[335859405,1724537438704,-500.0,0.00010999,2]
[335859406,1724537438713,-500.0,0.00010999,2]
[335859407,1724537438722,-500.0,0.00010999,2]
[335859408,1724537438731,-500.0,0.00010999,2]
[335859409,1724537438740,-500.0,0.00010999,2]
[335859410,1724537438750,-500.0,0.00010999,2]
[335859411,1724537438759,-500.0,0.00010999,2]
[335859412,1724537438770,-500.0,0.00010999,2]
[335859413,1724537438779,-500.0,0.00010999,2]
[335859414,1724537438788,-500.0,0.00010999,2]
[335859415,1724537438797,-500.0,0.00010999,2]
[335859416,1724537438806,-500.0,0.00010999,2]
[335859417,1724537438815,-500.0,0.00010999,2]
[335859418,1724537438824,-363.19848,0.00010999,2]
[335859419,1724537438833,-303.80060881,0.00010999,2]
[335859420,1724537438843,-500.0,0.00010999,2]
[335859421,1724537438852,-500.0,0.00010999,2]
[335859422,1724537438861,-500.0,0.00010999,2]
[335859423,1724537438870,-500.0,0.00010999,2]
[335859424,1724537438880,-500.0,0.00010999,2]
[335859425,1724537439043,-500.0,0.00010999,2]
[335859426,1724537439053,-609.64,0.00010999,2]
[335859427,1724537439062,-500.0,0.00010999,2]
[335859428,1724537439071,-258.29647496,0.00010999,2]
[335859429,1724537439080,-720.81,0.00010999,2]
[335859430,1724537439090,-720.81,0.00010999,2]
[335859431,1724537439099,-720.81,0.00010999,2]
[335859432,1724537439110,-720.81,0.00010999,2]
[335859433,1724537439120,-720.81,0.00010999,2]
[335859434,1724537439130,-720.81,0.00010999,2]
[335859435,1724537439141,-720.81,0.00010999,2]
[335859436,1724537439151,-720.81,0.00010999,2]
[335859437,1724537439160,-720.81,0.00010999,2]
[335859438,1724537439169,-720.81,0.00010999,2]
[335859439,1724537439178,-720.81,0.00010999,2]
[335859440,1724537439188,-720.81,0.00010999,2]
[335859441,1724537439197,-720.81,0.00010999,2]
[335859442,1724537439207,-720.81,0.00010999,2]
[335859443,1724537439216,-720.81,0.00010999,2]
[335859444,1724537439226,-720.81,0.00010999,2]
[335859445,1724537439235,-720.81,0.00010999,2]
[335859446,1724537439244,-720.81,0.00010999,2]
[335859447,1724537439254,-720.81,0.00010999,2]
[335859448,1724537439263,-720.81,0.00010999,2]
[335859449,1724537439272,-720.81,0.00010999,2]
[335859450,1724537439281,-720.81,0.00010999,2]
[335859451,1724537439290,-720.81,0.00010999,2]
[335859452,1724537439300,-720.82209172,0.00010999,2]
[335859453,1724537439309,-500.0,0.00010999,2]
[335859454,1724537439319,-185.57,0.00010999,2]
[335859455,1724537439330,-500.0,0.00010999,2]
[335859456,1724537439339,-500.0,0.00010999,2]
[335859457,1724537439349,-500.0,0.00010999,2]
[335859458,1724537439358,-500.0,0.00010999,2]
[335859459,1724537439368,-500.0,0.00010999,2]
[335859460,1724537439378,-576.56,0.00010999,2]
[335859461,1724537439388,-461.95934273,0.00010999,2]
[335859462,1724537439397,-500.0,0.00010999,2]
[335859463,1724537439410,-500.0,0.00010999,2]
[335859464,1724537439420,-500.0,0.00010999,2]
[335859465,1724537439429,-500.0,0.00010999,2]
[335859466,1724537439440,-639.0,0.00011,2]
[335859467,1724537439449,-137941.28136606,0.00011,2]
[335859468,1724537439459,-1032836.65845998,0.00011,2]
[335859471,1724537439697,-1073.59111442,0.00011,2]
[335859472,1724537439710,-9006.13833433,0.00011,2]
[335859473,1724537439800,-1127.88449212,0.00011,2]
[335859474,1724537439814,-1919.82715344,0.00011,2]
[335859475,1724537439825,-1109.03999997,0.00011,2]
[335859476,1724537439836,-3184.1,0.00011,2]
[335859477,1724537439894,-637.6,0.00011,2]
[335859478,1724537439917,-30676.82635577,0.00011,2]
[335859503,1724537442650,-2750.00000004,0.00011,2]
[335859504,1724537442665,-1918.34413141,0.00011,2]
[335859505,1724537442819,-822.822,0.00011,2]
[335859514,1724537445543,-1900.40696928,0.00011,2]
[335859515,1724537445555,-685.375,0.00011,2]
[335859516,1724537445640,-1106.15833539,0.00011,2]
[335859517,1724537445884,-2138.00000118,0.00011,2]
[335859518,1724537445895,-1135.31998,0.00011,2]
[335859519,1724537445907,-568.80754221,0.00011,2]
[335859526,1724537495633,268.09,9.448e-05,2]
[335859527,1724537605415,1050.0,0.0001,2]
[335859532,1724537771007,1533.83665966,0.0001,10]
[335859533,1724537998682,271.64,8.315e-05,2]
[335859539,1724538262006,200.1,0.00010001,2]
[335859541,1724538270023,440.08291615,0.00010009,2]
[335859542,1724538313880,150.0,9.888e-05,2]
[335859545,1724538372197,2629.0,0.00025,60]
[335859546,1724538386259,919.78,9.961e-05,2]
[335859547,1724538393360,1408.92,9.983e-05,2]
[335859548,1724538404798,2729.78519022,0.00025,62]
[335859549,1724538437039,194.57904106,0.00010009,2]
[335859552,1724538480371,238.96,0.00010001,2]
[335859553,1724538496777,200.0,9.989e-05,2]
[335859559,1724538526974,274.16,8.219e-05,2]
[335859562,1724538566274,155.39113803,9.962e-05,2]
[335859563,1724538577527,229.66145693,9.962e-05,2]
[335859564,1724538587196,226918.09932056,0.00025,60]
[335859565,1724538593578,1500.0,9.962e-05,2]
[335859566,1724538602679,203.17091879,9.962e-05,2]
[335859568,1724538613391,177.92625904,0.00010009,2]
[335859575,1724538631597,-685.1378582,0.00010076,2]
[335859579,1724538631690,-312.02099594,0.00010076,2]
[335859580,1724538631703,-2.84114586,0.00010076,2]
[335859581,1724538631713,-326.76763151,0.00010097,2]
[335859582,1724538631725,-497.36645201,0.00010097,2]
[335859583,1724538631737,-464.98768208,0.00010097,2]
[335859584,1724538631748,-110.06231792,0.00010097,2]
[335859585,1724538631782,-339.56907993,0.00010097,2]
[335859586,1724538631791,-560.43092007,0.000101,2]
[335859587,1724538631802,-2587.39251727,0.000101,2]
[335859588,1724538631814,-1852.17656266,0.000101,2]
[335859589,1724538631823,-300.0,0.00010245,2]
[335859590,1724538631833,-24822.0,0.00010246,2]
[335859591,1724538631842,-199.9,0.0001036,2]
[335859592,1724538631852,-3819.08329108,0.00010399,2]
[335859593,1724538631863,-155.0,0.00010471,2]
[335859594,1724538631873,-274.16,0.00010477,2]
[335859595,1724538631882,-513.16398389,0.00010505,2]
[335859631,1724538637950,-174.37324589,0.00010505,2]
[335859632,1724538637959,-738.36549,0.00010505,2]
[335859633,1724538637968,-155.0,0.00010566,2]
[335859634,1724538637977,-713.58,0.00010778,2]
[335859635,1724538637986,-150.0,0.00010799,2]
[335859636,1724538637996,-456.34019486,0.000108,2]
[335859637,1724538638010,-267.93800855,0.000108,2]
[335859638,1724538638021,-7008.20154807,0.000108,2]
[335859639,1724538638032,-2020.05996531,0.000108,2]
[335859640,1724538638041,-356.95,0.000108,2]
[335859641,1724538638051,-421.55,0.000108,2]
[335859642,1724538638061,-790.9,0.000108,2]
[335859643,1724538638070,-356.95,0.000108,2]
[335859644,1724538638080,-356.51,0.000108,2]
[335859645,1724538638089,-757.393,0.00010816,2]
[335859646,1724538638099,-1138.0,0.00010821,2]
[335859648,1724538638108,-556.0,0.00010821,2]
[335859649,1724538638118,-580.34176,0.0001089,2]
[335859651,1724538638127,-424.3549,0.00010899,2]
[335859653,1724538638136,-184.34107472,0.00010899,2]
[335859655,1724538638145,-184.34107469,0.00010899,2]
[335859657,1724538638154,-81.69547575,0.00010899,2]
[335859659,1724538638166,-102.64559894,0.00010899,2]
[335859660,1724538638175,-4849.17624076,0.000109,2]
[335859663,1724538639745,-250.0,0.00010178,2]
[335859664,1724538639757,-431.26488617,0.000109,2]
[335859665,1724538639771,-13253.22423378,0.000109,2]
[335859666,1724538639836,-639.75,0.000109,2]
[335859667,1724538639849,-47276.50093929,0.000109,2]
[335859668,1724538639859,-5122.6458,0.000109,2]
[335859669,1724538639868,-20917.9407,0.000109,2]
[335859670,1724538639877,-799.720536,0.000109,2]
[335859671,1724538639886,-184.34107469,0.000109,2]
[335859672,1724538639895,-150.0,0.0001092,2]
[335859673,1724538639904,-552.0,0.0001092,2]
[335859674,1724538639914,-1897.0,0.0001092,2]
[335859675,1724538639923,-248.0,0.0001092,2]
[335859676,1724538639932,-1154.0,0.0001092,2]
[335859677,1724538639941,-3320.0,0.0001092,2]
[335859678,1724538639951,-164.38,0.00010959,2]
[335859679,1724538639960,-164.37,0.00010959,2]
[335859680,1724538639970,-250.0,0.00010959,2]
[335859681,1724538639979,-160.63,0.00010959,2]
[335859682,1724538639988,-2016.83135392,0.0001099,2]
[335859683,1724538639997,-588.82412706,0.00010998,2]
[335859684,1724538640006,-500.0,0.00010999,2]
[335859685,1724538640015,-500.0,0.00010999,2]
[335859686,1724538640025,-500.0,0.00010999,2]
[335859687,1724538640034,-500.0,0.00010999,2]
[335859688,1724538640043,-500.0,0.00010999,2]
[335859689,1724538640053,-500.0,0.00010999,2]
[335859690,1724538640063,-500.0,0.00010999,2]
[335859691,1724538640072,-500.0,0.00010999,2]
[335859692,1724538640081,-500.0,0.00010999,2]
[335859693,1724538640090,-318.31162344,0.00010999,2]
[335859694,1724538640100,-500.0,0.00010999,2]
[335859697,1724538640266,-500.0,0.00010999,2]
[335859698,1724538640276,-500.0,0.00010999,2]
[335859699,1724538640286,-500.0,0.00010999,2]
[335859700,1724538640295,-541.91637014,0.00010999,2]
[335859701,1724538640304,-500.0,0.00010999,2]
[335859702,1724538640314,-500.0,0.00010999,2]
[335859703,1724538640324,-500.0,0.00010999,2]
[335859704,1724538640334,-500.0,0.00010999,2]
[335859705,1724538640344,-500.0,0.00010999,2]
[335859706,1724538640353,-500.0,0.00010999,2]
[335859707,1724538640363,-500.0,0.00010999,2]
[335859708,1724538640372,-500.0,0.00010999,2]
[335859709,1724538640381,-500.0,0.00010999,2]
[335859710,1724538640390,-500.0,0.00010999,2]
[335859711,1724538640399,-500.0,0.00010999,2]
[335859712,1724538640409,-639.77200642,0.00010999,2]
[335859713,1724538640418,-644.32995697,0.00010999,2]
[335859714,1724538640427,-500.0,0.00010999,2]
[335859715,1724538640437,-500.0,0.00010999,2]
[335859716,1724538640446,-500.0,0.00010999,2]
[335859717,1724538640455,-500.0,0.00010999,2]
[335859718,1724538640465,-500.0,0.00010999,2]
[335859719,1724538640474,-500.0,0.00010999,2]
[335859720,1724538640483,-500.0,0.00010999,2]
[335859721,1724538640492,-500.0,0.00010999,2]
[335859722,1724538640501,-500.0,0.00010999,2]
[335859723,1724538640511,-500.0,0.00010999,2]
[335859724,1724538640520,-500.0,0.00010999,2]
[335859725,1724538640530,-500.0,0.00010999,2]
[335859726,1724538640539,-500.0,0.00010999,2]
[335859727,1724538640548,-500.0,0.00010999,2]
[335859728,1724538640559,-500.0,0.00010999,2]
[335859729,1724538640569,-500.0,0.00010999,2]
[335859730,1724538640578,-500.0,0.00010999,2]
[335859731,1724538640587,-500.0,0.00010999,2]
[335859732,1724538640596,-500.0,0.00010999,2]
[335859733,1724538640606,-500.0,0.00010999,2]
[335859734,1724538640615,-500.0,0.00010999,2]
[335859735,1724538640625,-500.0,0.00010999,2]
[335859736,1724538640634,-307.03456273,0.00010999,2]
[335859737,1724538640644,-500.0,0.00010999,2]
[335859738,1724538640653,-500.0,0.00010999,2]
[335859739,1724538640664,-500.0,0.00010999,2]
[335859740,1724538640677,-464.25,0.00010999,2]
[335859741,1724538640686,-100361.96594187,0.00011,2]
[335859742,1724538640696,-24149.73917915,0.00011,2]
[335859743,1724538640708,-55679.4596601,0.00011,2]
[335859744,1724538640720,-9967.2847113,0.00011,2]
[335859745,1724538640739,-9511.12059182,0.00011,2]
[335859746,1724538640752,-5577.69796219,0.00011,2]
[335859760,1724538642746,-150.0,0.00010821,2]
[335859762,1724538642755,-463.09825755,0.00011,2]
[335859763,1724538642766,-293.75433028,0.00011,2]
[335859764,1724538642825,-7040.65125959,0.00011,2]
[335859765,1724538642910,-643.71140223,0.00011,2]
[335859766,1724538642921,-2865.81931308,0.00011,2]
[335859778,1724538645649,-12548.09551436,0.00011,2]
[335859783,1724538649221,500.0,0.0001,3]
[335859789,1724538996524,340.71,0.00027,120]
[335859793,1724539035929,262.85,8.219e-05,2]
[335859794,1724539074301,200.0,9.906e-05,2]
[335859795,1724539263267,174.12,9.913e-05,2]
[335859797,1724539406086,5677.33,9.969e-05,2]
[335859798,1724539411151,1050.0,0.0001,2]
[335859799,1724539460217,1000.0,9.885e-05,2]
[335859800,1724539511895,150.0,9.888e-05,2]
[335859801,1724539555484,266.5,8.219e-05,2]
[335859805,1724539649747,500.0,0.0001,3]
[335859807,1724539734116,893.27357362,0.00010009,2]
[335859816,1724539831907,-217.17304257,0.00010026,2]
[335859817,1724539831918,-199.92,0.00010076,2]
[335859818,1724539831928,-123.91767598,0.000101,3]
[335859819,1724539831946,-976.08232402,0.000101,3]
[335859820,1724539831955,-1600.0,0.000102,3]
[335859821,1724539831964,-2200.0,0.000103,3]
[335859822,1724539831975,-2011.16576176,0.000104,3]
[335859823,1724539831986,-688.83423824,0.000104,3]
[335859824,1724539831996,-266.5,0.00010479,2]
[335859825,1724539832005,-500.0,0.000105,3]
[335859826,1724539832014,-1581.26,0.000105,2]
[335859827,1724539832024,-155.0,0.00010566,2]
[335859828,1724539832033,-500.0,0.000106,3]
[335859829,1724539832043,-155.0,0.00010699,2]
[335859830,1724539832052,-500.0,0.000107,3]
[335859831,1724539832061,-150.0,0.00010791,2]
[335859832,1724539832070,-500.0,0.000108,3]
[335859833,1724539832079,-2875.36686439,0.0001082,2]
[335859834,1724539832095,-2613.10872722,0.0001082,2]
[335859835,1724539832106,-3215.28470839,0.0001082,2]
[335859836,1724539832117,-157.95458,0.0001089,2]
[335859837,1724539832127,-2852.9344,0.00010899,2]
[335859838,1724539832138,-4958.6828,0.000109,2]
[335859839,1724539832148,-28927.5474,0.000109,2]
[335859840,1724539832158,-347.853,0.000109,2]
[335859841,1724539832168,-938.4516,0.000109,2]
[335859842,1724539832178,-1000.0,0.000109,2]
[335859843,1724539832187,-48387.53997703,0.000109,2]
[335859844,1724539832197,-164.95731865,0.000109,2]
[335859845,1724539832206,-974.0,0.000109,3]
[335859846,1724539832216,-7500.0,0.000109,2]
[335859847,1724539832226,-556.0,0.0001092,2]
[335859848,1724539832235,-1138.0,0.0001092,2]
[335859849,1724539832244,-447.0,0.0001092,2]
[335859850,1724539832253,-809.0,0.0001092,2]
[335859851,1724539832263,-1897.0,0.0001092,2]
[335859852,1724539832272,-552.0,0.0001092,2]
[335859853,1724539832281,-247.0,0.0001092,2]
[335859854,1724539832290,-2847.752,0.0001092,2]
[335859856,1724539832299,-1154.0,0.0001092,2]
[335859857,1724539832308,-189.04,0.00010959,2]
[335859859,1724539832319,-178.11,0.00010959,2]
[335859861,1724539832329,-250.0,0.00010959,2]
[335859863,1724539832338,-3939.36827943,0.00010979,2]
[335859865,1724539832347,-150.75,0.0001099,2]
[335859867,1724539832356,-150.75,0.0001099,2]
[335859869,1724539832365,-150.75,0.0001099,2]
[335859871,1724539832374,-150.75,0.0001099,2]
[335859872,1724539832383,-150.75,0.0001099,2]
[335859874,1724539832393,-150.75,0.0001099,2]
[335859875,1724539832402,-150.75,0.0001099,2]
[335859876,1724539832411,-150.75,0.0001099,2]
[335859877,1724539832420,-150.75,0.0001099,2]
[335859878,1724539832429,-150.75,0.0001099,2]
[335859879,1724539832438,-150.75,0.0001099,2]
[335859880,1724539832447,-150.75,0.0001099,2]
[335859881,1724539832456,-150.75,0.0001099,2]
[335859882,1724539832465,-150.75,0.0001099,2]
[335859883,1724539832474,-8516.94876963,0.00010997,2]
[335859884,1724539832484,-500.0,0.00010999,2]
[335859885,1724539832493,-500.0,0.00010999,2]
[335859886,1724539832502,-500.0,0.00010999,2]
[335859887,1724539832511,-500.0,0.00010999,2]
[335859888,1724539832520,-265.38493812,0.00010999,2]
[335859889,1724539832529,-500.0,0.00010999,2]
[335859890,1724539832538,-500.0,0.00010999,2]
[335859891,1724539832548,-500.0,0.00010999,2]
[335859892,1724539832558,-500.0,0.00010999,2]
[335859893,1724539832567,-447.54523568,0.00010999,2]
[335859894,1724539832577,-500.0,0.00010999,2]
[335859895,1724539832588,-500.0,0.00010999,2]
[335859896,1724539832597,-500.0,0.00010999,2]
[335859897,1724539832606,-500.0,0.00010999,2]
[335859898,1724539832615,-407.07,0.00010999,2]
[335859899,1724539832624,-500.0,0.00010999,2]
[335859900,1724539832634,-500.0,0.00010999,2]
[335859901,1724539832643,-500.0,0.00010999,2]
[335859902,1724539832653,-500.0,0.00010999,2]
[335859903,1724539832662,-500.0,0.00010999,2]
[335859904,1724539832671,-500.0,0.00010999,2]
[335859905,1724539832680,-500.0,0.00010999,2]
[335859906,1724539832690,-500.0,0.00010999,2]
[335859907,1724539832700,-500.0,0.00010999,2]
[335859908,1724539832709,-500.0,0.00010999,2]
[335859909,1724539832718,-500.0,0.00010999,2]
[335859910,1724539832728,-500.0,0.00010999,2]
[335859911,1724539832738,-742.19,0.00010999,2]
[335859912,1724539832749,-742.19,0.00010999,2]
[335859913,1724539832759,-742.19,0.00010999,2]
[335859914,1724539832769,-742.19,0.00010999,2]
[335859915,1724539832778,-742.19,0.00010999,2]
[335859917,1724539832788,-742.19,0.00010999,2]
[335859918,1724539832799,-742.19,0.00010999,2]
[335859919,1724539832808,-742.19,0.00010999,2]
[335859920,1724539832819,-742.19,0.00010999,2]
[335859921,1724539832828,-742.19,0.00010999,2]
[335859922,1724539832837,-742.19,0.00010999,2]
[335859923,1724539832847,-742.19,0.00010999,2]
[335859924,1724539832856,-742.19,0.00010999,2]
[335859925,1724539832865,-742.19,0.00010999,2]
[335859926,1724539832874,-742.19,0.00010999,2]
[335859927,1724539832883,-742.19,0.00010999,2]
[335859928,1724539832892,-742.19,0.00010999,2]
[335859929,1724539832901,-742.19,0.00010999,2]
[335859930,1724539832910,-742.19,0.00010999,2]
[335859931,1724539832919,-742.19,0.00010999,2]
[335859932,1724539832928,-742.19,0.00010999,2]
[335859933,1724539832937,-742.19,0.00010999,2]
[335859934,1724539832946,-742.19,0.00010999,2]
[335859935,1724539832955,-742.22621338,0.00010999,2]
[335859936,1724539832964,-500.0,0.00010999,2]
[335859937,1724539832974,-500.0,0.00010999,2]
[335859938,1724539832983,-187.12433044,0.00010999,2]
[335859939,1724539832992,-500.0,0.00010999,2]
[335859940,1724539833001,-500.0,0.00010999,2]
[335859941,1724539833010,-500.0,0.00010999,2]
[335859942,1724539833020,-500.0,0.00010999,2]
[335859943,1724539833029,-525.51519345,0.00010999,2]
[335859944,1724539833038,-500.0,0.00010999,2]
[335859945,1724539833047,-500.0,0.00010999,2]
[335859946,1724539833056,-500.0,0.00010999,2]
[335859947,1724539833065,-500.0,0.00010999,2]
[335859948,1724539833074,-500.0,0.00010999,2]
[335859949,1724539833083,-500.0,0.00010999,2]
[335859950,1724539833097,-163.90595851,0.00010999,2]
[335859951,1724539833107,-500.0,0.00010999,2]
[335859952,1724539833116,-500.0,0.00010999,2]
[335859953,1724539833125,-500.0,0.00010999,2]
[335859954,1724539833134,-500.0,0.00010999,2]
[335859955,1724539833144,-500.0,0.00010999,2]
[335859956,1724539833153,-500.0,0.00010999,2]
[335859957,1724539833163,-500.0,0.00010999,2]
[335859958,1724539833174,-500.0,0.00010999,2]
[335859959,1724539833185,-500.0,0.00010999,2]
[335859960,1724539833194,-500.0,0.00010999,2]
[335859961,1724539833204,-500.0,0.00010999,2]
[335859962,1724539833214,-500.0,0.00010999,2]
[335859963,1724539833224,-500.0,0.00010999,2]
[335859964,1724539833233,-500.0,0.00010999,2]
[335859965,1724539833243,-500.0,0.00010999,2]
[335859966,1724539833254,-500.0,0.00010999,2]
[335859967,1724539833264,-500.0,0.00010999,2]
[335859968,1724539833273,-500.0,0.00010999,2]
[335859969,1724539833283,-316.61202881,0.00010999,2]
[335859970,1724539833292,-500.0,0.00010999,2]
[335859971,1724539833302,-500.0,0.00010999,2]
[335859972,1724539833311,-500.0,0.00010999,2]
[335859973,1724539833320,-500.0,0.00010999,2]
[335859974,1724539833329,-500.0,0.00010999,2]
[335859975,1724539833339,-500.0,0.00010999,2]
[335859976,1724539833349,-500.0,0.00010999,2]
[335859977,1724539833358,-500.0,0.00010999,2]
[335859978,1724539833368,-500.0,0.00010999,2]
[335859979,1724539833378,-500.0,0.00010999,2]
[335859980,1724539833388,-500.0,0.00010999,2]
[335859981,1724539833398,-500.0,0.00010999,2]